Cogmind - Beta 12 @@@ ROGUE MODE // 2023.03.26 @ 19:43:40 Player: tareth Result: Destroyed by Y-54 Guardian with Flak Gun Performance ------------- Evolutions (3) 1500 Regions Visited (9) 1800 Robots Destroyed (52) 260 Value Destroyed (1804) 1804 Prototype IDs (0) 0 Alien Tech Used (0) 0 Bonus (233) 233 TOTAL SCORE: 5597 Bonus ------- Pacifist 200 High Alert Combat Kills 33 Cogmind --------- Core Integrity 0/700 Matter 300/300 Energy 100/100 System Corruption 2% Temperature Cool (12) Movement Core (50) Location -7/Factory Parts ------- > --- POWER (1) -------- (None) > --- PROPULSION (4) --- (None) > --- UTILITY (5) ------ (None) > --- WEAPON (3) ------- (None) > --- INVENTORY (5) ---- Light Nuclear Core Peak State ------------ > --- POWER ------------ Improved Deuterium Engine > --- PROPULSION ------- Aluminum Leg Aluminum Leg Aluminum Leg Carbon-fiber Leg > --- UTILITY ---------- Improved Heat Sink Large Storage Unit Trap Scanner Medium Armor Plating Recalibrator > --- WEAPON ----------- Light Assault Rifle Minigun Minigun > --- INVENTORY -------- Ion Engine Deuterium Engine Light Nuclear Core Light Angular Momentum Engine Light Treads Light Treads Light Treads Improved Treads Large Matter Pod Medium Laser Particle Gun Particle Gun Shotgun Grenade Launcher [Rating: 32] Favorites ----------- Power Ion Engine Engine Ion Engine Power Core Light Nuclear Core Propulsion Light Treads Treads Light Treads Leg Aluminum Leg Wheel Wheel Utility Improved Heat Sink Device Improved Heat Sink Storage Large Storage Unit Processor Improved Melee Analysis Suite Protection Medium Armor Plating Weapon Assault Rifle Energy Gun Particle Gun Ballistic Gun Assault Rifle Build | -11 -10 -9 -9 -9 -8 -8 -7 -7 -7 ------- Run | Jun Mat Mat Min Exi Min Mat Fac Was Fac Slots Evolved 6 | . . 2 . . . 2 2 . . Power . | . . . . . . . . . . Propulsion 2 | . . 2 . . . . . . . Utility 3 | . . . . . . 1 2 . . Weapon 1 | . . . . . . 1 . . . Parts Attached 66 | 6 1 6 7 1 3 18 16 2 6 Power 5 | 1 . . 2 . . . 1 . 1 Engine 4 | 1 . . 2 . . . 1 . . Core 1 | . . . . . . . . . 1 Reactor . | . . . . . . . . . . Propulsion 30 | 2 . 5 4 . 1 10 5 . 3 Treads 9 | . . 5 . . . . 4 . . Leg 14 | . . . . . . 10 1 . 3 Wheel 7 | 2 . . 4 . 1 . . . . Hover . | . . . . . . . . . . Flight . | . . . . . . . . . . Utility 15 | 1 . 1 . 1 . 4 5 2 1 Device 6 | . . 1 . . . 1 2 1 1 Storage 4 | 1 . . . 1 . 2 . . . Processor 1 | . . . . . . . 1 . . Hackware . | . . . . . . . . . . Protection 4 | . . . . . . 1 2 1 . Artifact . | . . . . . . . . . . Weapon 16 | 2 1 . 1 . 2 4 5 . 1 Energy Gun 5 | . . . . . 1 . 3 . 1 Energy Cannon . | . . . . . . . . . . Ballistic Gun 11 | 2 1 . 1 . 1 4 2 . . Ballistic Cannon . | . . . . . . . . . . Launcher . | . . . . . . . . . . Special Weapon . | . . . . . . . . . . Impact Weapon . | . . . . . . . . . . Slashing Weapon . | . . . . . . . . . . Piercing Weapon . | . . . . . . . . . . Special Melee Weapon . | . . . . . . . . . . Unidentified Prototypes . | . . . . . . . . . . Parts Lost 23 | . . . 2 . 1 5 5 4 6 Power 2 | . . . 1 . . . . . 1 Propulsion 10 | . . . 1 . 1 3 1 1 3 Utility 6 | . . . . . . 1 2 2 1 Weapon 5 | . . . . . . 1 2 1 1 Highest Loss Streak 6 | . . . 2 . 1 2 5 3 6 To Critical Strikes . | . . . . . . . . . . Average Slot Usage (%) 88 | . 85 89 99 100 99 99 88 68 37 Engine 8 | . 14 11 11 11 11 9 7 5 . Treads 13 | . . 36 33 . . . 19 22 . Leg 10 | . . . . . . 28 10 . 20 Wheel 12 | . 28 7 10 44 43 6 . . . Device 8 | . . 1 11 11 11 10 11 11 3 Storage 9 | . 14 11 11 11 11 13 7 5 . Protection 2 | . . . . . . 3 7 11 . Energy Gun 2 | . . . . . 4 . 8 5 5 Ballistic Gun 18 | . 28 22 22 22 17 26 13 5 . Naked Turns 64 | . . . . . . . . 41 23 Heaviest Build 51 | 13 14 15 15 29 32 40 49 51 9 Greatest Support 83 | 32 32 80 80 40 46 46 83 83 30 Greatest Overweight (x) 2 | . . . . . . 2 1 . . Average Overweight (x) . | . . . . . . . . . . Largest Inventory Capacity 15 | 8 8 8 8 15 15 15 15 15 5 Average Capacity 11 | 6 8 8 8 11 15 15 15 12 5 Most Carried 15 | 6 8 8 8 9 15 15 15 14 4 Average Carried 9 | 3 7 7 7 8 11 14 12 10 . Final Capacity 15 | 8 8 8 8 15 15 15 15 5 5 Final Carried 15 | 6 8 8 7 9 15 13 13 5 1 Class Distribution -------------------- 48% | Mutant 22% | Scavenger-Tank 9% | Scavenger-Mutant 9% | Scavenger-Gunner 6% | Scavenger-Skirmisher 4% | Gunner Dominant Class ---------------- Mutant | -10/Materials Mutant | -9/Materials Mutant | -9/Mines Mutant | -9/Exiles Mutant | -8/Mines Scavenger-Gunner | -8/Materials Scavenger-Tank | -7/Factory Scavenger-Mutant | -7/Waste Scavenger-Mutant | -7/Factory Resources | -11 -10 -9 -9 -9 -8 -8 -7 -7 -7 ----------- Run | Jun Mat Mat Min Exi Min Mat Fac Was Fac Matter Collected 1815 | 187 . 248 165 10 92 609 356 88 60 Remotely . | . . . . . . . . . . Salvage Created 2021 | . . 248 228 . 237 882 356 . 70 Parts 124 | . . 18 14 . 15 52 23 . 2 Haulers Intercepted . | . . . . . . . . . . Recyclers Shooed . | . . . . . . . . . . Parts Field Recycled . | . . . . . . . . . . Retrieved Matter . | . . . . . . . . . . Parts Self-Destructed . | . . . . . . . . . . Prevented . | . . . . . . . . . . Kills | -11 -10 -9 -9 -9 -8 -8 -7 -7 -7 ------- Run | Jun Mat Mat Min Exi Min Mat Fac Was Fac Combat Hostiles Destroyed 49 | . . 5 7 . 6 22 7 . 2 Guns 49 | . . 5 7 . 6 22 7 . 2 Classes Destroyed 7 | . . 3 2 . 1 . 1 . . Tunneler 1 | . . . 1 . . . . . . Recycler 1 | . . . . . 1 . . . . Watcher 1 | . . 1 . . . . . . . Swarmer 13 | . . . 4 . 3 6 . . . Grunt 30 | . . 4 3 . 3 15 3 . 2 Duelist 3 | . . . . . . . 3 . . Sentry 3 | . . 1 . . . 1 1 . . Best Kill Streak 6 | . . 3 5 . 4 6 3 . 2 Combat Bots Only 6 | . . 3 4 . 3 6 3 . 2 Max Kills in Single Turn 2 | . . 1 2 . 1 1 1 . 1 Gunslinging . | . . . . . . . . . . Exploded . | . . . . . . . . . . Melee . | . . . . . . . . . . Uniques/NPCs Destroyed . | . . . . . . . . . . Combat | -11 -10 -9 -9 -9 -8 -8 -7 -7 -7 -------- Run | Jun Mat Mat Min Exi Min Mat Fac Was Fac Damage Taken 3807 | . . 243 483 . 224 719 1010 244 884 Core 869 | . . 29 42 . 25 70 66 93 544 Absorbed by Shields . | . . . . . . . . . . Core Remaining (%) 90 | 100 100 . . . 76 87 . . . Volleys Fired 153 | . . 21 17 . 14 54 33 4 10 Largest 3 | . . 2 2 . 2 3 3 3 1 Hottest 153 | . . 40 40 . 88 70 153 113 65 Shots Fired 364 | . . 42 34 . 28 160 78 12 10 Gun 364 | . . 42 34 . 28 160 78 12 10 Cannon . | . . . . . . . . . . Launcher . | . . . . . . . . . . Special . | . . . . . . . . . . Kinetic 337 | . . 42 34 . 24 160 69 8 . Thermal 27 | . . . . . 4 . 9 4 10 Explosive . | . . . . . . . . . . Electromagnetic . | . . . . . . . . . . Robot Hit Streak 17 | . . 10 5 . 8 17 11 5 9 Robot Miss Streak 5 | . . 2 2 . 2 5 2 3 4 Penetration Max . | . . . . . . . . . . Secondary Targets 5 | . . . 3 . 1 . 1 . . Max Gunslinging Chain 1 | . . . 1 . 1 . 1 . . Shots Hit Robots 256 | . . 30 24 . 20 103 58 11 10 Core Hits 136 | . . 12 12 . 13 55 24 2 18 Critical Kills 1 | . . . . . 1 . . . . Critical Parts Destroyed 1 | . . 1 . . . . . . . Critical Strikes 3 | . . 1 . . 2 . . . . Burn 1 | . . . . . 1 . . . . Destroy 2 | . . 1 . . 1 . . . . Melee Attacks . | . . . . . . . . . . Impact . | . . . . . . . . . . Slashing . | . . . . . . . . . . Piercing . | . . . . . . . . . . Sneak Attacks . | . . . . . . . . . . Combat Hostiles . | . . . . . . . . . . Follow-up Attacks . | . . . . . . . . . . Damage Inflicted 3546 | . . 383 295 . 244 1342 835 218 229 Guns 3468 | . . 383 295 . 244 1335 835 218 158 Cannons . | . . . . . . . . . . Explosions . | . . . . . . . . . . Melee . | . . . . . . . . . . Ramming 78 | . . . . . . 7 . . 71 Kinetic 3142 | . . 383 295 . 194 1335 787 148 . Thermal 326 | . . . . . 50 . 48 70 158 Explosive . | . . . . . . . . . . Electromagnetic . | . . . . . . . . . . Impact . | . . . . . . . . . . Slashing . | . . . . . . . . . . Piercing . | . . . . . . . . . . Highest Corruption 3 | . . . . . . 3 . . 2 Average Corruption 2 | . . . . . . 3 . . 1 Corruption Purged . | . . . . . . . . . . Corruption Blocked . | . . . . . . . . . . Effects 12 | . . . . . . 12 . . . Message Errors 2 | . . . . . . 2 . . . Matter Fused 2 | . . . . . . 2 . . . Heat Flow Errors 3 | . . . . . . 3 . . . Data Loss (minor) 1 | . . . . . . 1 . . . Data Loss (major) 1 | . . . . . . 1 . . . Alerts 1 | . . . . . . 1 . . . Weapon Failures 2 | . . . . . . 2 . . . Overload Shots . | . . . . . . . . . . Overflow Damage . | . . . . . . . . . . Projectiles . | . . . . . . . . . . Explosions . | . . . . . . . . . . Melee . | . . . . . . . . . . Knockbacks . | . . . . . . . . . . Impact . | . . . . . . . . . . Kinetic . | . . . . . . . . . . Secondary . | . . . . . . . . . . Self-Inflicted Damage 20 | . . . . . . 3 . . 17 Shots . | . . . . . . . . . . Rammed 24 | . . . . . . 2 . . 22 Targets Rammed 41 | . . . . . . 2 . . 39 Kicked 17 | . . . . . . . . . 17 Crushed . | . . . . . . . . . . Highest Temperature 309 | . . 4 . . 28 255 309 184 135 Average Temperature 100 | . . 4 . . 13 47 163 89 66 Received Heat Transfer 1287 | . . 129 171 . 117 369 207 . 294 Effects 5 | . . . . . . . 5 . . Energy Bleed 2 | . . . . . . . 2 . . Interference 2 | . . . . . . . 2 . . Short Circuit 1 | . . . . . . . 1 . . Siege Activations . | . . . . . . . . . . Robots Corrupted . | . . . . . . . . . . Combat Hostiles . | . . . . . . . . . . Parts Fried . | . . . . . . . . . . Impact Corruptions . | . . . . . . . . . . Robots Melted . | . . . . . . . . . . Combat Hostiles . | . . . . . . . . . . Parts Melted . | . . . . . . . . . . Heat Transferred 591 | . . . . . 185 . 111 90 205 Parts Sabotaged . | . . . . . . . . . . Parts Stolen . | . . . . . . . . . . Parts Stripped . | . . . . . . . . . . Power Chain Reactions . | . . . . . . . . . . Missiles Intercepted . | . . . . . . . . . . Alert | -11 -10 -9 -9 -9 -8 -8 -7 -7 -7 ------- Run | Jun Mat Mat Min Exi Min Mat Fac Was Fac Peak Influence 466 | . . 138 162 . 150 466 206 26 55 Initial 121 | . . . 17 . . 58 121 26 . Average 115 | . . 45 74 . 54 286 104 6 24 Maximum Alert Level 2 | . . . . . . 2 1 . . Low Security (%) 78 | 100 100 100 100 . 100 20 92 100 100 Level 1 18 | . . . . . . 67 7 . . Level 2 3 | . . . . . . 12 . . . Level 3 . | . . . . . . . . . . Level 4 . | . . . . . . . . . . Level 5 . | . . . . . . . . . . High Security . | . . . . . . . . . . Max Security . | . . . . . . . . . . Squads Dispatched 11 | . . 1 . . . 8 2 . . Investigation 1 | . . . . . . 1 . . . Extermination 1 | . . . . . . . 1 . . Reinforcement 6 | . . 1 . . . 4 1 . . Assault . | . . . . . . . . . . Garrison 3 | . . . . . . 3 . . . Intercept . | . . . . . . . . . . Searches Triggered . | . . . . . . . . . . Construction Impeded . | . . . . . . . . . . Haulers Reinforced . | . . . . . . . . . . Active Scanning Responses . | . . . . . . . . . . Cargo Convoy Interrupts . | . . . . . . . . . . Stealth | -11 -10 -9 -9 -9 -8 -8 -7 -7 -7 --------- Run | Jun Mat Mat Min Exi Min Mat Fac Was Fac Distress Signals 3 | . . 1 . . . 2 . . . Communications Jammed . | . . . . . . . . . . Distress Signals . | . . . . . . . . . . Times Spotted 77 | . . 12 7 . 7 32 9 6 4 Peak Tracking Total 8 | . . 4 4 . 3 8 3 6 2 Tactical Retreats 1 | . . . . . 1 . . . . Traps | -11 -10 -9 -9 -9 -8 -8 -7 -7 -7 ------- Run | Jun Mat Mat Min Exi Min Mat Fac Was Fac Traps Triggered 2 | . . . . . . 1 1 . . Indirectly . | . . . . . . . . . . Trap Hack Attempts . | . . . . . . . . . . Triggered . | . . . . . . . . . . Disarmed . | . . . . . . . . . . Reprogrammed . | . . . . . . . . . . Reused . | . . . . . . . . . . Traps Extracted . | . . . . . . . . . . Installed . | . . . . . . . . . . Triggered . | . . . . . . . . . . Machines | -11 -10 -9 -9 -9 -8 -8 -7 -7 -7 ---------- Run | Jun Mat Mat Min Exi Min Mat Fac Was Fac Machines Disabled . | . . . . . . . . . . Max in Single Turn . | . . . . . . . . . . Machines Repaired . | . . . . . . . . . . Machines Sabotaged . | . . . . . . . . . . Overloaded Fab Kills . | . . . . . . . . . . Hacking | -11 -10 -9 -9 -9 -8 -8 -7 -7 -7 --------- Run | Jun Mat Mat Min Exi Min Mat Fac Was Fac Machines Accessed 5 | . . 1 . 4 . . . . . Terminals 1 | . . 1 . . . . . . . Fabricators . | . . . . . . . . . . Repair Stations . | . . . . . . . . . . Recycling Units . | . . . . . . . . . . Scanalyzers . | . . . . . . . . . . Garrison Access . | . . . . . . . . . . Total Hacks 5 | . . 1 . 4 . . . . . Successful 5 | . . 1 . 4 . . . . . Failed . | . . . . . . . . . . Catastrophic . | . . . . . . . . . . Database Lockouts . | . . . . . . . . . . Manual 2 | . . 1 . 1 . . . . . Terminals 1 | . . 1 . . . . . . . Fabricators . | . . . . . . . . . . Repair Stations . | . . . . . . . . . . Recycling Units . | . . . . . . . . . . Scanalyzers . | . . . . . . . . . . Garrison Access . | . . . . . . . . . . Terminal Hacks 4 | . . . . 4 . . . . . Record 4 | . . . . 4 . . . . . Fabricator Hacks . | . . . . . . . . . . Repair Station Hacks . | . . . . . . . . . . Recycling Unit Hacks . | . . . . . . . . . . Scanalyzer . | . . . . . . . . . . Garrison Access Hacks . | . . . . . . . . . . Unauthorized Hacks 1 | . . 1 . . . . . . . Terminals 1 | . . 1 . . . . . . . Track 1 | . . 1 . . . . . . . Fabricators . | . . . . . . . . . . Repair Stations . | . . . . . . . . . . Recycling Units . | . . . . . . . . . . Scanalyzers . | . . . . . . . . . . Garrison Access . | . . . . . . . . . . Data Cores Recovered . | . . . . . . . . . . Used . | . . . . . . . . . . Hacking Detections . | . . . . . . . . . . Full Trace Events . | . . . . . . . . . . Feedback Events . | . . . . . . . . . . Feedback Blocked . | . . . . . . . . . . Robot Schematics Acquired . | . . . . . . . . . . Robots Built . | . . . . . . . . . . Authchips . | . . . . . . . . . . Time . | . . . . . . . . . . Total Robot Build Rating . | . . . . . . . . . . Part Schematics Acquired . | . . . . . . . . . . Parts Built . | . . . . . . . . . . Authchips . | . . . . . . . . . . Time . | . . . . . . . . . . Total Part Build Rating . | . . . . . . . . . . Parts Repaired . | . . . . . . . . . . Time . | . . . . . . . . . . Parts Recycled . | . . . . . . . . . . Recycled Matter . | . . . . . . . . . . Retrieved Matter . | . . . . . . . . . . Retrieved Components . | . . . . . . . . . . Parts Scanalyzed . | . . . . . . . . . . Part Schematics Acquired . | . . . . . . . . . . Parts Damaged . | . . . . . . . . . . Bothacking | -11 -10 -9 -9 -9 -8 -8 -7 -7 -7 ------------ Run | Jun Mat Mat Min Exi Min Mat Fac Was Fac Used RIF Installer . | . . . . . . . . . . Robots Hacked . | . . . . . . . . . . Non-combat . | . . . . . . . . . . Combat . | . . . . . . . . . . Robot Hacks Applied . | . . . . . . . . . . Relay Couplers Released . | . . . . . . . . . . Fabnet Peak Effective % . | . . . . . . . . . . Robots Rewired . | . . . . . . . . . . Allies Hacked . | . . . . . . . . . . Hacks Repelled . | . . . . . . . . . . Allies | -11 -10 -9 -9 -9 -8 -8 -7 -7 -7 -------- Run | Jun Mat Mat Min Exi Min Mat Fac Was Fac Total Allies 1 | . . . . . . . . 1 . Largest Group 1 | . . . . . . . . 1 . Highest-Rated Group 31 | . . . . . . . . 31 . Highest-Rated Ally 31 | . . . . . . . . 31 . Total Orders . | . . . . . . . . . . Ally Attacks 11 | . . . . . . . . 11 . Total Damage 185 | . . . . . . . . 185 . Kills . | . . . . . . . . . . Allies Corrupted . | . . . . . . . . . . Allies Melted . | . . . . . . . . . . Intel | -11 -10 -9 -9 -9 -8 -8 -7 -7 -7 ------- Run | Jun Mat Mat Min Exi Min Mat Fac Was Fac Robot Analysis Total . | . . . . . . . . . . Derelict Logs Recovered . | . . . . . . . . . . Drone Launches . | . . . . . . . . . . Drone Recoveries . | . . . . . . . . . . Exploration | -11 -10 -9 -9 -9 -8 -8 -7 -7 -7 ------------- Run | Jun Mat Mat Min Exi Min Mat Fac Was Fac Turns Passed 3825 | 60 99 633 270 501 181 832 758 187 304 Spaces Moved 2501 | 47 93 314 157 624 101 456 390 156 163 Core 80 | 3 . . . . . . . 77 . Treads 761 | . . 314 95 . . . 273 79 . Legs 610 | . . . . . . 330 117 . 163 Wheels 1050 | 44 93 . 62 624 101 126 . . . Hover . | . . . . . . . . . . Flight . | . . . . . . . . . . Fastest Speed 50 | 50 100 160 80 80 80 85 120 50 120 Average Speed 115 | 96 100 160 128 80 82 110 155 105 120 Slowest Speed 190 | 100 100 160 160 80 85 130 190 160 120 Overloaded Moves . | . . . . . . . . . . Propulsion Burnouts . | . . . . . . . . . . Robots Hopped . | . . . . . . . . . . Cave-ins Triggered . | . . . . . . . . . . Exploration Rate (%) 35 | 4 25 26 47 91 28 46 8 77 3 Regions Visited 9 Branch Regions 3 Pre-discovered Areas . | . . . . . . . . . . Known Exits Taken . | . . . . . . . . . . Unknown Exits Taken 7 | 1 1 1 1 1 1 1 . . . Scrap Searched 1 | . . . 1 . . . . . . Spaces Dug . | . . . . . . . . . . Terrain Destroyed . | . . . . . . . . . . Melee . | . . . . . . . . . . Projectile . | . . . . . . . . . . AOE . | . . . . . . . . . . Terrain Rammed . | . . . . . . . . . . Walls Destroyed . | . . . . . . . . . . Machines Disabled . | . . . . . . . . . . Actions | -11 -10 -9 -9 -9 -8 -8 -7 -7 -7 --------- Run | Jun Mat Mat Min Exi Min Mat Fac Was Fac Total 3169 | 58 100 405 193 625 175 698 487 171 257 Wait 305 | . . 50 4 . 45 136 30 2 38 Move 2493 | 46 92 313 156 623 100 455 390 155 163 Hop . | . . . . . . . . . . Pick Up 58 | 6 4 8 4 1 10 14 9 1 1 Fast Attach 18 | 6 . 1 . . . 4 5 1 1 Attach 27 | . . 2 2 . 3 6 8 1 5 Detach 2 | . . . . . . 1 . 1 . Swap 21 | . 1 3 5 1 . 8 3 . . Drop 51 | . 3 7 5 . 3 18 9 6 . Fire 153 | . . 21 17 . 14 54 33 4 10 Melee . | . . . . . . . . . . Ram 24 | . . . . . . 2 . . 22 Kick 17 | . . . . . . . . . 17 Crush . | . . . . . . . . . . Escape Stasis . | . . . . . . . . . . Rewire . | . . . . . . . . . . Trap . | . . . . . . . . . . Miscellaneous . | . . . . . . . . . . Route ------- -11/Junkyard -10/Materials -9/Materials -9/Mines -9/Exiles (discovered 2 exits: [*Min x2]) -8/Mines -8/Materials -7/Factory -7/Waste -7/Factory History --------- Turn | Location | Event 4 | -11/Junkyard | Discovered new exit (range 16) 61 | -11/Junkyard | Entered Materials 151 | -10/Materials | Discovered new exit (range 3) 160 | -10/Materials | Entered another Materials area 160 | -9/Materials | Evolved 2 slots: Propulsion x2 316 | -9/Materials | Build established: Mutant 764 | -9/Materials | Discovered new exit (range 16) 793 | -9/Materials | Entered Mines 1059 | -9/Mines | Deemed a non-threat by the Exiles lab entrance 1059 | -9/Mines | Discovered new exit (range 5) 1063 | -9/Mines | Entered Exiles 1063 | -9/Exiles | Found Exiles lab abandoned 1076 | -9/Exiles | Discovered new exit (range 15) 1320 | -9/Exiles | Discovered new exit (range 14) 1564 | -9/Exiles | Entered Mines 1741 | -8/Mines | Discovered new exit (range 5) 1745 | -8/Mines | Entered Materials 1745 | -8/Materials | Evolved 2 slots: Utility x1, Weapon x1 1869 | -8/Materials | Garrison activated, responded to threat 2221 | -8/Materials | Build established: Scavenger-Gunner 2526 | -8/Materials | Discovered new exit (range 14) 2577 | -8/Materials | Entered Factory 2577 | -7/Factory | Evolved 2 slots: Utility x2 2606 | -7/Factory | Build established: Scavenger-Tank 2853 | -7/Factory | Lost 5 parts (1n2u2w) 3335 | -7/Factory | Sucked down chute 3335 | -7/Factory | Entered Waste 3336 | -7/Waste | Met a frightened Derelict 3350 | -7/Waste | Spotted C-40 Crusher 3393 | -7/Waste | Spotted C-40 Crusher 3401 | -7/Waste | Crushed by Compactor (1 part destroyed, 1 dropped) 3438 | -7/Waste | Spotted C-40 Crusher 3439 | -7/Waste | Spotted C-40 Crusher 3439 | -7/Waste | Spotted C-40 Crusher 3459 | -7/Waste | Spotted C-40 Crusher 3471 | -7/Waste | Crushed by Compactor (1 part destroyed, 1 dropped) 3479 | -7/Waste | Crushed by Compactor (1 part destroyed, 2 dropped) 3510 | -7/Waste | Lost 3 parts (1n2u) 3517 | -7/Waste | Discovered new exit (range 11) 3522 | -7/Waste | Entered Factory 3804 | -7/Factory | Core integrity fell below 50% 3817 | -7/Factory | Core integrity fell below 20% 3826 | -7/Factory | Destroyed by Y-54 Guardian with Flak Gun Last Messages --------------- 03778_ Spread Laser destroyed. 03779_ Kicked Y-54 Guardian. 03780_ Kicked Y-54 Guardian out of the way. 03784_ Imp. Heat Sink destroyed. 03785_ Kicked Y-54 Guardian out of the way. 03786_ Kicked Y-54 Guardian. 03787_ Kicked Y-54 Guardian out of the way. 03788_ Kicked Y-54 Guardian. 03792_ Kicked Y-54 Guardian out of the way. 03794_ Lgt. Nuclear Core destroyed. 03797_ Kicked Y-54 Guardian. 03797_ Aluminum Leg destroyed. 03798_ Kicked Y-54 Guardian out of the way. 03800_ Kicked Y-54 Guardian. 03803_ Aluminum Leg destroyed. 03804_ Slammed into Y-54 Guardian. 03804_ Destabilizing: System corrupted (+1). 03805_ Slammed into Y-54 Guardian. 03813_ Destabilizing: System corrupted (+1). 03814_ Slammed into Y-54 Guardian. Map ----- +----------------------------------------------------+ | ????????????????????????????????????????? | | ????????????????????????????????????????? | | ????????????????????????????????????????? | | ????????????????????????????????????????? | | ????????????????????????????????????????? | | ????????????????????????????????????????? | | ????????????????????????????????????????? | | ????????????????? ??????????????????????? | | ???????????? ???? ??????????????????????? | | ???????????# ??? ??????????????????????? | | ???????????# """ ??????????????????????? | | ????????#### """ ??????????????????????? | | ????????? """ ??????????????????????? | | ????????? ??????????????????????? | | ?????????? ??????????????????????? | | ??????????? #??????????????????????? | | ???????????# #??????????????????????? | | ???????????# #??????????????????????? | | ???????????# #??????????????????????? | | ???????????# #??????????????????????? | | ???????????# #??????????????????????? | | ???????????# #??????????????????????? | | ???????????# #?##########???????????? | | ############ ### %%%%%%#???????????? | | # """%Y%#???????????? | | # """@%%#???????????? | | #% """%%%#???????????? | | %+%%%%%%%%#???????????? | | #%"%"%%%%#???????????? | | ###+########## # "Y"%%%%#???????????? | | #????# # """%%%%#???????????? | | """ """ #????####### % #???????????? | | """ """ #??????????##########???????????? | | """ """ #???????????????????????????????? | | #???????????????????????????????? | | """Y""" #???????????????????????????????? | | """"""" #???????????????????????????????? | | #???????????????????????????????? | | #########???????????????????????????????? | | ????????????????????????????????????????? | | ????????????????????????????????????????? | | ????????????????????????????????????????? | | ????????????????????????????????????????? | | ????????????????????????????????????????? | | ????????????????????????????????????????? | | ????????????????????????????????????????? | | ????????????????????????????????????????? | | ????????????????????????????????????????? | | ????????????????????????????????????????? | | ????????????????????????????????????????? | +----------------------------------------------------+ Best States ------------- Heat Dissipation 59 Energy Generation 16 Energy Capacity 450 Matter Stores 450 Matter Capacity 450 Sight Range 16 Terrain Scan Density 10 Armor Coverage 300 Evasion (%) 55 Melee Accuracy 6 Recoil Reduction 4 Item Schematics ----------------- None Robot Schematics ------------------ None Fabricated ------------ Nothing Alien Tech Used ----------------- None Achievements -------------- None Challenges ------------ None Game ------ Seed MappingVortexPrototype Manual? 0 Play Time 01:03:49 Cumulative 22.1 hours Start 2023.03.26 @ 18:02:03 End 2023.03.26 @ 19:43:40 Sessions 3 Manual Loads 0 Difficulty Rogue Special Mode None Game No. 21 Rogue 21 Adventurer 0 Explorer 0 Win Type - Total 0 Types 0/0/0/0/0/0/0/0/0 Lore% 16 Gallery% 20 Achievement% 20 Wizard Run 0 Options --------- ASCII 0 Keyboard 0 Movement Numpad Keybinds 0 Fullscreen 1 Font 18/SmallcapsGlow Map View 76x50 Tactical HUD 1 Map Filters NONE Filters NONE Steam 1 RUN: 02410c29-caaf-4ecf-9c20-8767db57d9ad